fUSD/lending_fUSD_20260612
["ID","MTS","AMOUNT","RATE_DAILY","PERIOD"]
[424864837,1781213446000,-300.0,0.00034475,2]
[424864832,1781213446000,-300.0,0.00034475,2]
[424864835,1781213446000,-300.0,0.00034475,2]
[424864839,1781213446000,-528.57447289,0.00034475,2]
[424864841,1781213446000,-300.0,0.00034475,2]
[424864840,1781213446000,-300.0,0.00034475,2]
[424864843,1781213446000,-300.0,0.00034475,2]
[424864851,1781213446000,-300.0,0.00034475,2]
[424864818,1781213446000,-300.0,0.00034475,2]
[424864838,1781213446000,-345.05091273,0.00034475,2]
[424864819,1781213446000,-300.0,0.00034475,2]
[424864804,1781213446000,-300.0,0.00034475,2]
[424864826,1781213446000,-300.0,0.00034475,2]
[424864842,1781213446000,-300.0,0.00034475,2]
[424864790,1781213446000,-300.0,0.00034475,2]
[424864791,1781213446000,-300.0,0.00034475,2]
[424864792,1781213446000,-300.0,0.00034475,2]
[424864802,1781213446000,-300.0,0.00034475,2]
[424864803,1781213446000,-300.0,0.00034475,2]
[424864801,1781213446000,-300.0,0.00034475,2]
[424864799,1781213446000,-300.0,0.00034475,2]
[424864800,1781213446000,-300.0,0.00034475,2]
[424864798,1781213446000,-1098.78445781,0.00034475,2]
[424864795,1781213446000,-300.0,0.00034475,2]
[424864793,1781213446000,-300.0,0.00034475,2]
[424864817,1781213446000,-300.0,0.00034475,2]
[424864797,1781213446000,-300.0,0.00034475,2]
[424864794,1781213446000,-834.28394638,0.00034475,2]
[424864805,1781213446000,-300.0,0.00034475,2]
[424864815,1781213446000,-300.0,0.00034475,2]
[424864814,1781213446000,-300.0,0.00034475,2]
[424864806,1781213446000,-300.0,0.00034475,2]
[424864807,1781213446000,-300.0,0.00034475,2]
[424864808,1781213446000,-300.0,0.00034475,2]
[424864813,1781213446000,-367.31398168,0.00034475,2]
[424864811,1781213446000,-494.26340531,0.00034475,2]
[424864810,1781213446000,-300.0,0.00034475,2]
[424864809,1781213446000,-300.0,0.00034475,2]
[424864816,1781213446000,-606.59953242,0.00034475,2]
[424864796,1781213446000,-581.40810196,0.00034475,2]
[424864849,1781213446000,-300.0,0.00034475,2]
[424864870,1781213446000,-300.0,0.00034475,2]
[424864850,1781213446000,-300.0,0.00034475,2]
[424864877,1781213446000,-300.0,0.00034475,2]
[424864880,1781213446000,-834.28394638,0.00034475,2]
[424864881,1781213446000,-300.0,0.00034475,2]
[424864884,1781213446000,-300.0,0.00034475,2]
[424864883,1781213446000,-1098.78445781,0.00034475,2]
[424864885,1781213446000,-300.0,0.00034475,2]
[424864886,1781213446000,-300.0,0.00034475,2]
[424864887,1781213446000,-300.0,0.00034475,2]
[424864892,1781213446000,-300.0,0.00034475,2]
[424864894,1781213446000,-300.0,0.00034475,2]
[424864895,1781213446000,-300.0,0.00034475,2]
[424864893,1781213446000,-300.0,0.00034475,2]
[424864889,1781213446000,-300.0,0.00034475,2]
[424864896,1781213446000,-300.0,0.00034475,2]
[424864890,1781213446000,-300.0,0.00034475,2]
[424864888,1781213446000,-300.0,0.00034475,2]
[424864897,1781213446000,-494.26340531,0.00034475,2]
[424864899,1781213446000,-300.0,0.00034475,2]
[424864898,1781213446000,-494.52733572,0.00034475,2]
[424864900,1781213446000,-300.0,0.00034475,2]
[424864902,1781213446000,-606.59953242,0.00034475,2]
[424864904,1781213446000,-300.0,0.00034475,2]
[424864903,1781213446000,-300.0,0.00034475,2]
[424864901,1781213446000,-300.0,0.00034475,2]
[424864847,1781213446000,-300.0,0.00034475,2]
[424864882,1781213446000,-300.0,0.00034475,2]
[424864878,1781213446000,-300.0,0.00034475,2]
[424864891,1781213446000,-300.0,0.00034475,2]
[424864879,1781213446000,-300.0,0.00034475,2]
[424864876,1781213446000,-300.0,0.00034475,2]
[424864846,1781213446000,-1803.5984271,0.00034475,2]
[424864852,1781213446000,-310.59667688,0.00034475,2]
[424864854,1781213446000,-300.0,0.00034475,2]
[424864853,1781213446000,-300.0,0.00034475,2]
[424864856,1781213446000,-300.0,0.00034475,2]
[424864857,1781213446000,-300.0,0.00034475,2]
[424864855,1781213446000,-1345.05845532,0.00034475,2]
[424864858,1781213446000,-300.0,0.00034475,2]
[424864859,1781213446000,-596.07542324,0.00034475,2]
[424864861,1781213446000,-300.0,0.00034475,2]
[424864862,1781213446000,-512.9116401,0.00034475,2]
[424864860,1781213446000,-300.0,0.00034475,2]
[424864845,1781213446000,-952.35439639,0.00034475,2]
[424864868,1781213446000,-300.0,0.00034475,2]
[424864864,1781213446000,-583.05784622,0.00034475,2]
[424864866,1781213446000,-453.35117681,0.00034475,2]
[424864865,1781213446000,-300.0,0.00034475,2]
[424864875,1781213446000,-300.0,0.00034475,2]
[424864874,1781213446000,-300.0,0.00034475,2]
[424864869,1781213446000,-300.0,0.00034475,2]
[424864867,1781213446000,-300.0,0.00034475,2]
[424864863,1781213446000,-300.0,0.00034475,2]
[424864872,1781213446000,-300.0,0.00034475,2]
[424864873,1781213446000,-445.16888154,0.00034475,2]
[424864871,1781213446000,-300.0,0.00034475,2]
[424864945,1781213447000,-300.0,0.00034475,2]
[424864936,1781213447000,-310.59667688,0.00034475,2]
[424864956,1781213447000,-453.35117681,0.00034475,2]
[424864971,1781213447000,-158.4519669,0.00034478,60]
[424864941,1781213447000,-300.0,0.00034475,2]
[424864937,1781213447000,-300.0,0.00034475,2]
[424864934,1781213447000,-300.0,0.00034475,2]
[424864931,1781213447000,-1803.5984271,0.00034475,2]
[424864939,1781213447000,-1345.05845532,0.00034475,2]
[424864935,1781213447000,-300.0,0.00034475,2]
[424864944,1781213447000,-300.0,0.00034475,2]
[424864940,1781213447000,-300.0,0.00034475,2]
[424864952,1781213447000,-583.05784622,0.00034475,2]
[424864958,1781213447000,-300.0,0.00034475,2]
[424864942,1781213447000,-300.0,0.00034475,2]
[424864947,1781213447000,-512.9116401,0.00034475,2]
[424864949,1781213447000,-300.0,0.00034475,2]
[424864954,1781213447000,-300.0,0.00034475,2]
[424864960,1781213447000,-300.0,0.00034475,2]
[424864970,1781213447000,-156.2420867,0.00034478,60]
[424864962,1781213447000,-710.9591389,0.00034478,60]
[424864973,1781213447000,-373.3527346,0.00034478,60]
[424864972,1781213447000,-190.900207,0.00034478,60]
[424864964,1781213447000,-259.6608252,0.00034478,60]
[424864966,1781213447000,-248.3337725,0.00034478,60]
[424864943,1781213447000,-596.07542324,0.00034475,2]
[424864933,1781213447000,-300.0,0.00034475,2]
[424864905,1781213447000,-300.0,0.00034475,2]
[424864932,1781213447000,-300.0,0.00034475,2]
[424864906,1781213447000,-300.0,0.00034475,2]
[424864907,1781213447000,-300.0,0.00034475,2]
[424864909,1781213447000,-300.0,0.00034475,2]
[424864908,1781213447000,-535.71068605,0.00034475,2]
[424864911,1781213447000,-300.0,0.00034475,2]
[424864910,1781213447000,-728.64234087,0.00034475,2]
[424864917,1781213447000,-300.0,0.00034475,2]
[424864912,1781213447000,-302.76104972,0.00034475,2]
[424864915,1781213447000,-301.53549973,0.00034475,2]
[424864914,1781213447000,-300.5481852,0.00034475,2]
[424864916,1781213447000,-300.0,0.00034475,2]
[424864913,1781213447000,-300.0,0.00034475,2]
[424864918,1781213447000,-300.0,0.00034475,2]
[424864919,1781213447000,-300.0,0.00034475,2]
[424864921,1781213447000,-300.0,0.00034475,2]
[424864920,1781213447000,-300.0,0.00034475,2]
[424864922,1781213447000,-300.0,0.00034475,2]
[424864923,1781213447000,-345.05091273,0.00034475,2]
[424864925,1781213447000,-300.0,0.00034475,2]
[424864928,1781213447000,-300.0,0.00034475,2]
[424864924,1781213447000,-528.57447289,0.00034475,2]
[424864927,1781213447000,-300.0,0.00034475,2]
[424864926,1781213447000,-300.0,0.00034475,2]
[424864929,1781213447000,-867.43380422,0.00034475,2]
[424864930,1781213447000,-952.35439639,0.00034475,2]
[424864938,1781213447000,-300.0,0.00034475,2]
[424864974,1781213447000,-455.7435446,0.00034478,60]
[424864990,1781213447000,-2529.5834,0.0003465,2]
[424864969,1781213447000,-171.4062848,0.00034478,60]
[424865009,1781213447000,-157.635871,0.00034679,7]
[424865003,1781213447000,-151.0,0.00034679,7]
[424865002,1781213447000,-151.0,0.00034679,7]
[424865007,1781213447000,-157.635871,0.00034679,7]
[424865010,1781213447000,-151.0,0.00034679,7]
[424865011,1781213447000,-151.0,0.00034679,7]
[424865012,1781213447000,-151.0,0.00034679,7]
[424865013,1781213447000,-151.0,0.00034679,7]
[424865022,1781213447000,-151.0,0.00034679,7]
[424865021,1781213447000,-151.0,0.00034679,7]
[424865014,1781213447000,-151.0,0.00034679,7]
[424865020,1781213447000,-612.279922,0.00034679,7]
[424865016,1781213447000,-151.0,0.00034679,7]
[424865015,1781213447000,-151.0,0.00034679,7]
[424865018,1781213447000,-151.0,0.00034679,7]
[424865019,1781213447000,-151.0,0.00034679,7]
[424865017,1781213447000,-612.279922,0.00034679,7]
[424865028,1781213447000,-2084.1047,0.00034718,2]
[424865024,1781213447000,-612.279922,0.00034679,7]
[424865029,1781213447000,-1395.20377704,0.0003475,7]
[424865026,1781213447000,-264.999239,0.00034679,7]
[424865025,1781213447000,-264.999239,0.00034679,7]
[424865027,1781213447000,-200.0,0.000347,12]
[424865030,1781213447000,-1428.7529369,0.0003475,7]
[424864967,1781213447000,-649.4414074,0.00034478,60]
[424865001,1781213447000,-248.67532,0.00034679,7]
[424865006,1781213447000,-157.635871,0.00034679,7]
[424865023,1781213447000,-612.279922,0.00034679,7]
[424865005,1781213447000,-157.635871,0.00034679,7]
[424865004,1781213447000,-151.0,0.00034679,7]
[424864975,1781213447000,-161.8706584,0.00034478,60]
[424864980,1781213447000,-20849.1186483,0.00034513,2]
[424864976,1781213447000,-228.0,0.0003448,3]
[424864977,1781213447000,-206.40590301,0.00034485,2]
[424864978,1781213447000,-303.00381317,0.00034485,2]
[424864982,1781213447000,-191.0,0.00034514,3]
[424864981,1781213447000,-11899.7244119,0.00034513,2]
[424864979,1781213447000,-218.0,0.00034493,3]
[424864983,1781213447000,-1570.0,0.00034521,30]
[424864985,1781213447000,-2529.5834,0.00034526,2]
[424864987,1781213447000,-295.39502125,0.00034579,6]
[424864986,1781213447000,-4487.9716,0.00034526,2]
[424864984,1781213447000,-2084.1047,0.00034526,2]
[424864996,1781213447000,-157.611457,0.00034679,7]
[424864999,1781213447000,-151.0,0.00034679,7]
[424864988,1781213447000,-199.0,0.000346,30]
[424865000,1781213447000,-197.110996,0.00034679,7]
[424864998,1781213447000,-157.611457,0.00034679,7]
[424864997,1781213447000,-157.611457,0.00034679,7]
[424864993,1781213447000,-657257.1382017,0.00034679,2]
[424865008,1781213447000,-151.0,0.00034679,7]
[424864992,1781213447000,-647.102562,0.00034678,120]
[424864991,1781213447000,-4487.9716,0.0003465,2]
[424864989,1781213447000,-200.0,0.00034621,10]
[424864995,1781213447000,-157.611457,0.00034679,7]
[424864994,1781213447000,-12745.9696126,0.00034679,2]
[424865048,1781213448000,-200.0,0.000349,12]
[424865061,1781213448000,-1206.89910895,0.0003497,2]
[424865051,1781213448000,-350.0,0.00034912,8]
[424865053,1781213448000,-250.02,0.00034935,120]
[424865054,1781213448000,-268.0,0.00034937,3]
[424865057,1781213448000,-400.0,0.00034952,2]
[424865059,1781213448000,-1000.0,0.0003497,2]
[424865060,1781213448000,-904.19534487,0.0003497,2]
[424865058,1781213448000,-152.0,0.00034954,7]
[424865063,1781213448000,-300.0,0.00034999,10]
[424865062,1781213448000,-745.16137,0.00034978,120]
[424865066,1781213448000,-269240.08949065,0.00035,7]
[424865064,1781213448000,-300.0,0.00034999,10]
[424865065,1781213448000,-666.0,0.00034999,30]
[424865077,1781213448000,-55732.15899853,0.00035,7]
[424865056,1781213448000,-400.0,0.00034952,2]
[424865068,1781213448000,-150.0,0.00035,7]
[424865067,1781213448000,-174.3887192,0.00035,7]
[424865055,1781213448000,-15129.0,0.00034937,10]
[424865036,1781213448000,-2529.5834,0.00034773,2]
[424865050,1781213448000,-2084.1047,0.0003491,2]
[424865069,1781213448000,-1322.24148291,0.00035,120]
[424865031,1781213448000,-1328.5301373,0.0003475,7]
[424865032,1781213448000,-1200.59855601,0.0003475,7]
[424865033,1781213448000,-4055.67,0.00034753,120]
[424865035,1781213448000,-154.18,0.00034768,120]
[424865046,1781213448000,-286.0,0.000349,120]
[424865037,1781213448000,-4487.9716,0.00034773,2]
[424865038,1781213448000,-1570.0,0.00034795,30]
[424865039,1781213448000,-1500.0,0.00034795,2]
[424865042,1781213448000,-200.0,0.000348,12]
[424865040,1781213448000,-5000.0,0.000348,30]
[424865044,1781213448000,-2529.5834,0.00034896,2]
[424865045,1781213448000,-4487.9716,0.00034896,2]
[424865043,1781213448000,-200.0,0.00034845,10]
[424865041,1781213448000,-321.60449862,0.000348,30]
[424865047,1781213448000,-1500.0,0.000349,7]
[424865049,1781213448000,-521.0,0.00034909,17]
[424865052,1781213448000,-361.19,0.00034931,5]
[424865070,1781213448000,-150.0,0.00035,7]
[424865034,1781213448000,-170.36,0.00034768,120]
[424865072,1781213448000,-426.29450614,0.00035,120]
[424865096,1781213448000,-151.0,0.00035,7]
[424865095,1781213448000,-151.0,0.00035,7]
[424865098,1781213448000,-151.0,0.00035,7]
[424865094,1781213448000,-4000.0,0.00035,30]
[424865099,1781213448000,-151.0,0.00035,7]
[424865100,1781213448000,-612.279922,0.00035,7]
[424865097,1781213448000,-151.0,0.00035,7]
[424865103,1781213448000,-612.279922,0.00035,7]
[424865106,1781213448000,-612.279922,0.00035,7]
[424865105,1781213448000,-151.0,0.00035,7]
[424865104,1781213448000,-151.0,0.00035,7]
[424865107,1781213448000,-612.279922,0.00035,7]
[424865110,1781213448000,-50000.00738072,0.00035,2]
[424865112,1781213448000,-29470.17350261,0.00035,30]
[424865109,1781213448000,-264.999239,0.00035,7]
[424865108,1781213448000,-264.999239,0.00035,7]
[424865076,1781213448000,-387.77751763,0.00035,120]
[424865093,1781213448000,-350.0,0.00035,60]
[424865101,1781213448000,-151.0,0.00035,7]
[424865111,1781213448000,-1741365.43704558,0.00035,30]
[424865092,1781213448000,-151.0,0.00035,7]
[424865071,1781213448000,-328.075539,0.00035,120]
[424865073,1781213448000,-1590.0,0.00035,7]
[424865074,1781213448000,-362.71485314,0.00035,120]
[424865075,1781213448000,-183.35346164,0.00035,120]
[424865078,1781213448000,-55732.15899853,0.00035,7]
[424865079,1781213448000,-18577.38633284,0.00035,7]
[424865081,1781213448000,-167.76592613,0.00035,120]
[424865088,1781213448000,-157.635871,0.00035,7]
[424865080,1781213448000,-18577.38633284,0.00035,7]
[424865083,1781213448000,-151.0,0.00035,7]
[424865089,1781213448000,-157.635871,0.00035,7]
[424865084,1781213448000,-151.0,0.00035,7]
[424865086,1781213448000,-151.0,0.00035,7]
[424865085,1781213448000,-206.0,0.00035,2]
[424865082,1781213448000,-644.87356391,0.00035,120]
[424865091,1781213448000,-151.0,0.00035,7]
[424865102,1781213448000,-151.0,0.00035,7]
[424865087,1781213448000,-157.635871,0.00035,7]
[424865090,1781213448000,-157.635871,0.00035,7]
[424865141,1781213466000,-185.09,0.00035031,2]
[424865143,1781213466000,-185.09,0.00035031,2]
[424865136,1781213466000,-4487.9716,0.00035019,2]
[424865134,1781213466000,-666.0,0.00035018,30]
[424865140,1781213466000,-151.0,0.00035031,2]
[424865135,1781213466000,-2529.5834,0.00035019,2]
[424865147,1781213466000,-446.14,0.00035042,7]
[424865138,1781213466000,-666.0,0.0003503,30]
[424865139,1781213466000,-151.86,0.00035031,2]
[424865146,1781213466000,-300.0,0.00035041,10]
[424865144,1781213466000,-575.42,0.00035031,2]
[424865145,1781213466000,-573.27,0.00035031,2]
[424865149,1781213466000,-1570.0,0.00035068,30]
[424865133,1781213466000,-300.0,0.00035018,10]
[424865137,1781213466000,-300.0,0.0003503,10]
[424865132,1781213466000,-300.0,0.00035018,10]
[424865128,1781213466000,-264.999239,0.00034679,7]
[424865118,1781213466000,-324.31,0.00027702,30]
[424865154,1781213466000,-2084.1047,0.00035102,2]
[424865115,1781213466000,-324.31,0.00027611,30]
[424865116,1781213466000,-324.31,0.00027641,2]
[424865117,1781213466000,-324.31,0.00027672,7]
[424865114,1781213466000,-324.31,0.0002758,7]
[424865119,1781213466000,-324.31,0.00027733,2]
[424865129,1781213466000,-295.39502125,0.00034974,7]
[424865127,1781213466000,-264.999239,0.00034679,7]
[424865130,1781213466000,-264.999239,0.00035,7]
[424865120,1781213466000,-324.31,0.00027763,7]
[424865123,1781213466000,-6441.60196652,0.0003018,2]
[424865131,1781213466000,-3229164.38945181,0.00035,30]
[424865121,1781213466000,-324.31,0.00027794,30]
[424865124,1781213466000,-880.0,0.00031154,30]
[424865122,1781213466000,-880.0,0.00030154,30]
[424865126,1781213466000,-300.0,0.00034475,2]
[424865125,1781213466000,-894.0,0.00031507,30]
[424865148,1781213466000,-300.0,0.00035067,10]
[424865142,1781213466000,-151.6,0.00035031,2]
[424865151,1781213466000,-157.57216,0.0003507,62]
[424865170,1781213466000,-472.0,0.00035154,30]
[424865174,1781213466000,-2796.0,0.0003516,5]
[424865180,1781213466000,-2529.5834,0.00035266,2]
[424865179,1781213466000,-1050.42853373,0.00035202,2]
[424865181,1781213466000,-4487.9716,0.00035266,2]
[424865172,1781213466000,-279.0,0.00035154,30]
[424865175,1781213466000,-450.28,0.00035174,2]
[424865173,1781213466000,-3247.0,0.0003516,5]
[424865176,1781213466000,-199.93762835,0.00035188,5]
[424865185,1781213466000,-610.983472,0.00035279,120]
[424865182,1781213466000,-255.54,0.00035269,120]
[424865189,1781213466000,-2084.1047,0.00035293,2]
[424865186,1781213466000,-150.0,0.00035285,2]
[424865188,1781213466000,-150.97091164,0.00035285,2]
[424865187,1781213466000,-150.0,0.00035285,2]
[424865152,1781213466000,-300.0,0.00035099,10]
[424865177,1781213466000,-200.0,0.00035194,10]
[424865178,1781213466000,-1000.0,0.00035202,2]
[424865184,1781213466000,-231.29,0.00035269,120]
[424865169,1781213466000,-199.0,0.00035154,30]
[424865155,1781213466000,-157.57217,0.0003512,62]
[424865171,1781213466000,-260.0,0.00035154,30]
[424865153,1781213466000,-25185.8515619,0.000351,120]
[424865150,1781213466000,-300.0,0.00035069,10]
[424865168,1781213466000,-241.0,0.00035154,30]
[424865167,1781213466000,-1292.0,0.00035154,30]
[424865156,1781213466000,-4450.0,0.00035129,5]
[424865158,1781213466000,-403.0,0.00035129,2]
[424865157,1781213466000,-4445.0,0.00035129,5]
[424865161,1781213466000,-364.0,0.00035149,30]
[424865165,1781213466000,-345.0,0.00035149,30]
[424865160,1781213466000,-4487.9716,0.00035143,2]
[424865162,1781213466000,-389.0,0.00035149,30]
[424865163,1781213466000,-248.0,0.00035149,30]
[424865164,1781213466000,-269.0,0.00035149,30]
[424865159,1781213466000,-2529.5834,0.00035143,2]
[424865166,1781213466000,-802.0,0.00035154,30]
[424865227,1781213467000,-199.0,0.000354,30]
[424865228,1781213467000,-150.0,0.000354,2]
[424865225,1781213467000,-1000.0,0.000354,2]
[424865224,1781213467000,-1000.0,0.000354,2]
[424865223,1781213467000,-1000.0,0.000354,2]
[424865229,1781213467000,-286.0,0.000354,120]
[424865219,1781213467000,-1000.0,0.000354,2]
[424865218,1781213467000,-1000.0,0.000354,2]
[424865230,1781213467000,-157.57216,0.000354,66]
[424865220,1781213467000,-1000.0,0.000354,2]
[424865226,1781213467000,-1008.79341403,0.000354,2]
[424865231,1781213467000,-157.57217,0.000354,66]
[424865242,1781213467000,-158.55225595,0.00035455,30]
[424865234,1781213467000,-179.535904,0.000354,2]
[424865244,1781213467000,-3500.0,0.0003546,30]
[424865237,1781213467000,-331.16,0.00035454,2]
[424865235,1781213467000,-200.0,0.000354,10]
[424865233,1781213467000,-157.57217,0.000354,66]
[424865236,1781213467000,-2017.46127646,0.00035423,15]
[424865238,1781213467000,-9096.69712251,0.00035455,31]
[424865239,1781213467000,-100000.0,0.00035455,120]
[424865241,1781213467000,-100000.0,0.00035455,60]
[424865240,1781213467000,-100000.0,0.00035455,90]
[424865243,1781213467000,-151.0,0.00035458,7]
[424865217,1781213467000,-1000.0,0.000354,2]
[424865232,1781213467000,-157.57217,0.000354,66]
[424865216,1781213467000,-1000.0,0.000354,2]
[424865203,1781213467000,-1000.0,0.000354,2]
[424865213,1781213467000,-1000.0,0.000354,2]
[424865246,1781213467000,-250.0,0.0003546,30]
[424865193,1781213467000,-182.30537748,0.00035355,2]
[424865192,1781213467000,-1570.0,0.00035342,30]
[424865195,1781213467000,-560.49449867,0.00035368,2]
[424865196,1781213467000,-2274.84027005,0.00035368,2]
[424865194,1781213467000,-500.0,0.00035365,2]
[424865191,1781213467000,-458.805876,0.00035306,120]
[424865198,1781213467000,-2529.5834,0.00035389,2]
[424865199,1781213467000,-4487.9716,0.00035389,2]
[424865209,1781213467000,-1000.0,0.000354,2]
[424865200,1781213467000,-6825.42106669,0.00035395,30]
[424865205,1781213467000,-1000.0,0.000354,2]
[424865201,1781213467000,-350.0,0.00035397,40]
[424865206,1781213467000,-1000.0,0.000354,2]
[424865208,1781213467000,-1000.0,0.000354,2]
[424865202,1781213467000,-1000.0,0.000354,2]
[424865197,1781213467000,-295.39502125,0.00035368,7]
[424865204,1781213467000,-1000.0,0.000354,2]
[424865207,1781213467000,-1000.0,0.000354,2]
[424865222,1781213467000,-1000.0,0.000354,2]
[424865221,1781213467000,-1000.0,0.000354,2]
[424865211,1781213467000,-1000.0,0.000354,2]
[424865210,1781213467000,-1000.0,0.000354,2]
[424865214,1781213467000,-1000.0,0.000354,2]
[424865212,1781213467000,-1000.0,0.000354,2]
[424865215,1781213467000,-1000.0,0.000354,2]
[424865245,1781213467000,-3629.5,0.0003546,30]
[424865273,1781213467000,-7142.856,0.0003546,30]
[424865248,1781213467000,-151.0,0.0003546,30]
[424865277,1781213467000,-152.0,0.0003546,30]
[424865281,1781213467000,-151.0,0.0003546,30]
[424865280,1781213467000,-156.587,0.0003546,30]
[424865285,1781213467000,-1000.0,0.0003546,30]
[424865286,1781213467000,-160.27064532,0.0003546,30]
[424865279,1781213467000,-520.0,0.0003546,30]
[424865287,1781213467000,-200.0,0.0003546,30]
[424865283,1781213467000,-151.0,0.0003546,30]
[424865284,1781213467000,-154.12265554,0.0003546,30]
[424865282,1781213467000,-4047.46470156,0.0003546,30]
[424865289,1781213467000,-200.0,0.0003546,30]
[424865294,1781213467000,-151.0,0.0003546,30]
[424865291,1781213467000,-156.587,0.0003546,30]
[424865293,1781213467000,-160.15525447,0.0003546,30]
[424865292,1781213467000,-1201.65948645,0.0003546,30]
[424865295,1781213467000,-500.0,0.0003546,30]
[424865297,1781213467000,-151.0,0.0003546,30]
[424865290,1781213467000,-10000.0,0.0003546,30]
[424865298,1781213467000,-278.88022306,0.0003546,30]
[424865296,1781213467000,-1870.65466908,0.0003546,30]
[424865300,1781213467000,-500.0,0.0003546,30]
[424865302,1781213467000,-151.0,0.0003546,30]
[424865303,1781213467000,-539.24,0.0003546,30]
[424865299,1781213467000,-162.380719,0.0003546,30]
[424865247,1781213467000,-500.0,0.0003546,30]
[424865278,1781213467000,-151.0,0.0003546,30]
[424865275,1781213467000,-250.0,0.0003546,30]
[424865288,1781213467000,-160.0,0.0003546,30]
[424865276,1781213467000,-156.587,0.0003546,30]
[424865251,1781213467000,-160.15525447,0.0003546,30]
[424865274,1781213467000,-3000.0,0.0003546,30]
[424865252,1781213467000,-6000.0,0.0003546,30]
[424865255,1781213467000,-1000.0,0.0003546,30]
[424865249,1781213467000,-250.0,0.0003546,30]
[424865253,1781213467000,-500.0,0.0003546,30]
[424865254,1781213467000,-151.0,0.0003546,30]
[424865250,1781213467000,-3763.7915,0.0003546,30]
[424865260,1781213467000,-151.0,0.0003546,30]
[424865258,1781213467000,-3000.0,0.0003546,30]
[424865262,1781213467000,-250.0,0.0003546,30]
[424865264,1781213467000,-160.27064532,0.0003546,30]
[424865257,1781213467000,-151.0,0.0003546,30]
[424865256,1781213467000,-152.0,0.0003546,30]
[424865263,1781213467000,-151.0,0.0003546,30]
[424865301,1781213467000,-156.587,0.0003546,30]
[424865261,1781213467000,-6888.0,0.0003546,30]
[424865270,1781213467000,-160.15525447,0.0003546,30]
[424865271,1781213467000,-500.0,0.0003546,30]
[424865269,1781213467000,-151.0,0.0003546,30]
[424865272,1781213467000,-151.0,0.0003546,30]
[424865267,1781213467000,-151.0,0.0003546,30]
[424865266,1781213467000,-200.0,0.0003546,30]
[424865259,1781213467000,-500.0,0.0003546,30]
[424865265,1781213467000,-3903.0517855,0.0003546,30]
[424865268,1781213467000,-156.587,0.0003546,30]
[424865345,1781213468000,-7681.20591386,0.0003546,30]
[424865334,1781213468000,-151.0,0.0003546,30]
[424865335,1781213468000,-559.19188,0.0003546,30]
[424865343,1781213468000,-4352.51806865,0.0003546,30]
[424865338,1781213468000,-518.5,0.0003546,30]
[424865342,1781213468000,-160.0,0.0003546,30]
[424865340,1781213468000,-155.57259517,0.0003546,30]
[424865336,1781213468000,-10000.0,0.0003546,30]
[424865337,1781213468000,-151.0,0.0003546,30]
[424865339,1781213468000,-151.0,0.0003546,30]
[424865341,1781213468000,-518.5,0.0003546,30]
[424865346,1781213468000,-500.0,0.0003546,30]
[424865365,1781213468000,-168.3888056,0.0003546,30]
[424865352,1781213468000,-168.3888056,0.0003546,30]
[424865349,1781213468000,-151.0,0.0003546,30]
[424865350,1781213468000,-200.0,0.0003546,30]
[424865347,1781213468000,-160.27064532,0.0003546,30]
[424865351,1781213468000,-1000.0,0.0003546,30]